fUST/lending_fUST_20250523
["ID","MTS","AMOUNT","RATE_DAILY","PERIOD"]
[362068838,1747968642238,-630.761742,0.0002171,2]
[362068839,1747968642248,-630.761742,0.0002171,2]
[362068840,1747968642258,-3000.0,0.0002172,2]
[362068841,1747968642268,-3434.93679,0.0002173,2]
[362068842,1747968642278,-152.713098,0.0002173,2]
[362068843,1747968642288,-151.0,0.0002173,2]
[362068844,1747968642298,-260.77834958,0.00021758,2]
[362068845,1747968642308,-223.0315306,0.00021758,2]
[362068846,1747968642318,-151.0,0.00021762,2]
[362068847,1747968642332,-151.0,0.00021762,2]
[362068848,1747968642342,-151.0,0.00021762,2]
[362068849,1747968642351,-228.294513,0.00021785,2]
[362068850,1747968642361,-228.294513,0.00021785,2]
[362068851,1747968642371,-151.0,0.00021785,2]
[362068852,1747968642381,-151.0,0.00021785,2]
[362068853,1747968642391,-430.0,0.00021917,2]
[362068854,1747968642402,-430.0,0.00021917,2]
[362068855,1747968642412,-430.0,0.00021917,2]
[362068856,1747968642422,-335.05831978,0.00021917,2]
[362068857,1747968642432,-151.0,0.00021917,2]
[362068858,1747968642442,-151.0,0.00021917,2]
[362068859,1747968642452,-208.356235,0.00021917,2]
[362068860,1747968642462,-208.356235,0.00021917,2]
[362068861,1747968642472,-151.0,0.00021917,2]
[362068862,1747968642482,-152.177729,0.00021917,2]
[362068863,1747968642492,-500.0,0.00021917,2]
[362068864,1747968642502,-500.0,0.00021917,2]
[362068865,1747968642512,-500.0,0.00021917,2]
[362068866,1747968642522,-500.0,0.00021917,2]
[362068867,1747968642531,-602.06168017,0.00021917,2]
[362068868,1747968642541,-500.0,0.00021918,2]
[362068869,1747968642550,-500.0,0.00021918,2]
[362068870,1747968642560,-417.52449515,0.00021918,2]
[362068871,1747968642569,-500.0,0.00021918,2]
[362068872,1747968642579,-500.0,0.00021918,2]
[362068873,1747968642589,-500.0,0.00021918,2]
[362068874,1747968642598,-500.0,0.00021918,2]
[362068875,1747968642608,-500.0,0.00021918,2]
[362068876,1747968642617,-500.0,0.00021918,2]
[362068877,1747968642627,-500.0,0.00021918,2]
[362068878,1747968642636,-500.0,0.00021918,2]
[362068879,1747968642646,-500.0,0.00021918,2]
[362068880,1747968642656,-500.0,0.00021918,2]
[362068881,1747968642666,-480.11,0.00021976,2]
[362068882,1747968642676,-610.31,0.00021976,2]
[362068884,1747968642685,-430.0,0.00021976,2]
[362068885,1747968642695,-529.17,0.00021976,2]
[362068886,1747968642705,-651.54,0.00021976,2]
[362068887,1747968642714,-156.981408,0.00021977,7]
[362068888,1747968642724,-210.547271,0.00021977,7]
[362068889,1747968642735,-878.44,0.00021977,2]
[362068890,1747968642746,-151.0,0.00021977,7]
[362068892,1747968642755,-151.0,0.00021977,7]
[362068893,1747968642765,-700.58,0.00021978,2]
[362068894,1747968642775,-606.73,0.00021978,2]
[362068895,1747968642785,-708.82,0.00021978,2]
[362068896,1747968642795,-155.0,0.00021978,2]
[362068897,1747968642804,-251.14,0.00022,2]
[362068898,1747968642814,-4303.135755,0.00022,7]
[362068899,1747968642824,-4303.135755,0.00022,7]
[362068900,1747968642834,-175.281537,0.00022,2]
[362068901,1747968642843,-175.281537,0.00022,2]
[362068902,1747968642853,-175.0,0.00022,2]
[362068903,1747968642863,-1200.0,0.00022041,2]
[362068904,1747968642874,-1000.0,0.00022041,2]
[362068906,1747968642884,-151.0,0.00022057,7]
[362068908,1747968642894,-151.0,0.00022057,7]
[362068910,1747968642903,-224.184227,0.00022057,7]
[362068913,1747968642913,-150.113,0.00022069,2]
[362068915,1747968642923,-151.0,0.000221,6]
[362068917,1747968642933,-1000.0,0.00022109,2]
[362068919,1747968642943,-1000.0,0.00022109,2]
[362068921,1747968642952,-1000.0,0.00022109,2]
[362068924,1747968642962,-160.0,0.00022112,4]
[362068927,1747968642971,-151.0,0.00022137,7]
[362068930,1747968642981,-536.24396676,0.00022158,2]
[362068932,1747968642991,-1152.0,0.00022186,2]
[362068934,1747968643001,-2164.85,0.000222,2]
[362068936,1747968643010,-1001.34095919,0.00022218,2]
[362068938,1747968643020,-151.0,0.00022219,7]
[362068940,1747968643029,-1001.29091798,0.00022239,2]
[362068942,1747968643039,-1000.0,0.00022239,2]
[362068944,1747968643048,-1000.96652709,0.00022239,2]
[362068946,1747968643058,-480.11,0.0002225,2]
[362068948,1747968643068,-610.31,0.0002225,2]
[362068950,1747968643078,-430.0,0.0002225,2]
[362068952,1747968643088,-529.17,0.0002225,2]
[362068955,1747968643098,-651.54,0.0002225,2]
[362068957,1747968643107,-878.44,0.00022251,2]
[362068959,1747968643117,-700.58,0.00022252,2]
[362068961,1747968643127,-606.73,0.00022252,2]
[362068963,1747968643136,-708.82,0.00022252,2]
[362068965,1747968643146,-1000.0,0.0002226,2]
[362068967,1747968643156,-445.5,0.00022311,15]
[362068969,1747968643165,-151.0,0.00022331,7]
[362068971,1747968643175,-12647.66147447,0.000224,7]
[362068973,1747968643185,-212.48480548,0.000224,7]
[362068975,1747968643195,-151.0,0.00022431,7]
[362068977,1747968643203,-241.682435,0.00022431,7]
[362068979,1747968643213,-241.682435,0.00022431,7]
[362068981,1747968643222,-894.64583333,0.000225,7]
[362068983,1747968643232,-480.11,0.00022524,2]
[362068985,1747968643242,-610.31,0.00022524,2]
[362068987,1747968643251,-430.0,0.00022524,2]
[362068989,1747968643261,-529.17,0.00022524,2]
[362068991,1747968643271,-651.54,0.00022524,2]
[362068993,1747968643280,-878.44,0.00022525,2]
[362068995,1747968643290,-700.58,0.00022526,2]
[362068997,1747968643300,-606.73,0.00022526,2]
[362068999,1747968643310,-708.82,0.00022526,2]
[362069001,1747968643320,-155.0,0.00022526,2]
[362069003,1747968643332,-630.761742,0.00022533,7]
[362069005,1747968643341,-630.761742,0.00022533,7]
[362069007,1747968643351,-228.294513,0.0002254,2]
[362069009,1747968643360,-228.294513,0.0002254,2]
[362069010,1747968643371,-1800.0,0.00022589,2]
[362069011,1747968643380,-792.49727188,0.00022589,2]
[362069012,1747968643390,-151.0,0.000226,5]
[362069013,1747968643402,-193.495645,0.00022603,2]
[362069014,1747968643411,-151.0,0.00022605,7]
[362069015,1747968643420,-151.0,0.00022605,7]
[362069016,1747968643430,-1502.619529,0.00022657,2]
[362069017,1747968643442,-1500.0,0.00022657,2]
[362069018,1747968643452,-1500.0,0.00022657,2]
[362069019,1747968643461,-160.0,0.0002268,5]
[362069020,1747968643471,-271.97645086,0.00022695,2]
[362069021,1747968643480,-2649.35480524,0.0002277,2]
[362069252,1747968919982,2180.0,0.00015,2]
[362069253,1747969300459,297.812393,0.00013699,2]
[362069457,1747969838194,-5000.0,0.00015158,2]
[362069458,1747969838204,-1777.1338839,0.00015311,2]
[362069459,1747969838214,-435.020618,0.00015625,2]
[362069460,1747969838223,-300.0,0.00015701,2]
[362069461,1747969838233,-300.0,0.00015701,2]
[362069462,1747969838243,-2072.1941883,0.00015702,2]
[362069463,1747969838255,-4541.75185877,0.00015702,2]
[362069515,1747969843483,-8617.34451454,0.00015702,2]
[362069516,1747969843497,-9668.70943839,0.00015702,2]
[362069517,1747969843506,-1013.1369584,0.0001592,2]
[362069518,1747969843517,-818.0,0.000163,2]
[362069519,1747969843526,-54.47250977,0.00016438,2]
[362069532,1747969846404,-927.96597823,0.00016274,2]
[362069533,1747969846416,-375.52749023,0.00016438,2]
[362069534,1747969846426,-435.71907627,0.00016496,2]
[362069535,1747969846435,-430.08540778,0.00016496,2]
[362069536,1747969846445,-500.0,0.00016497,2]
[362069537,1747969846455,-430.0,0.00016497,2]
[362069538,1747969846464,-486.36693469,0.00016497,2]
[362069539,1747969846474,-257.74351629,0.00016768,2]
[362069540,1747969846483,-430.0,0.00016768,2]
[362069541,1747969846493,-430.0,0.00016768,2]
[362069542,1747969846502,-430.0,0.00016768,2]
[362069543,1747969846512,-469.54,0.00016768,2]
[362069544,1747969846521,-430.84839565,0.00016768,2]
[362069545,1747969846531,-430.0,0.00016768,2]
[362069546,1747969846541,-430.0,0.00016768,2]
[362069547,1747969846550,-430.0,0.00016768,2]
[362069548,1747969846559,-430.0,0.00016768,2]
[362069549,1747969846569,-430.0,0.00016768,2]
[362069550,1747969846578,-430.0,0.00016768,2]
[362069551,1747969846587,-430.0,0.00016768,2]
[362069552,1747969846597,-430.0,0.00016768,2]
[362069553,1747969846607,-430.0,0.00016768,2]
[362069554,1747969846617,-430.0,0.00016768,2]
[362069555,1747969846626,-436.28775638,0.00016769,2]
[362069556,1747969846638,-436.20125637,0.00016769,2]
[362069557,1747969846647,-430.0,0.00016769,2]
[362069558,1747969846657,-463.77567485,0.00016769,2]
[362069559,1747969846666,-430.0,0.00016769,2]
[362069560,1747969846676,-430.0,0.00016769,2]
[362069561,1747969846687,-430.0,0.00016769,2]
[362069562,1747969846696,-430.0,0.00016769,2]
[362069563,1747969846706,-430.0,0.00016769,2]
[362069564,1747969846716,-430.0,0.00016769,2]
[362069565,1747969846726,-430.0,0.00016769,2]
[362069566,1747969846736,-500.0,0.00016771,2]
[362069567,1747969846747,-430.0,0.00016771,2]
[362069568,1747969846760,-430.0,0.00017042,2]
[362069569,1747969846769,-469.54,0.00017042,2]
[362069570,1747969846779,-430.0,0.00017042,2]
[362069571,1747969846788,-430.0,0.00017042,2]
[362069572,1747969846798,-504.28360783,0.00017042,2]
[362069573,1747969846808,-430.0,0.00017042,2]
[362069574,1747969846817,-430.0,0.00017042,2]
[362069575,1747969846829,-430.0,0.00017042,2]
[362069576,1747969846838,-430.0,0.00017042,2]
[362069577,1747969846849,-430.0,0.00017042,2]
[362069578,1747969846859,-430.0,0.00017043,2]
[362069579,1747969846868,-437.68837806,0.00017043,2]
[362069580,1747969846879,-441.26120253,0.00017043,2]
[362069581,1747969846889,-430.0,0.00017043,2]
[362069582,1747969846898,-430.0,0.00017043,2]
[362069583,1747969846909,-430.0,0.00017043,2]
[362069584,1747969846920,-436.07611035,0.00017043,2]
[362069585,1747969846931,-430.0,0.00017043,2]
[362069586,1747969846940,-430.0,0.00017043,2]
[362069587,1747969846950,-430.0,0.00017043,2]
[362069588,1747969846960,-430.0,0.00017043,2]
[362069589,1747969846969,-430.0,0.00017043,2]
[362069590,1747969846979,-438.88004122,0.00017043,2]
[362069591,1747969846989,-430.0,0.00017043,2]
[362069592,1747969846998,-430.0,0.00017043,2]
[362069593,1747969847008,-430.0,0.00017043,2]
[362069594,1747969847018,-430.0,0.00017043,2]
[362069595,1747969847028,-430.0,0.00017043,2]
[362069596,1747969847038,-436.22542399,0.00017043,2]
[362069597,1747969847048,-430.0,0.00017043,2]
[362069598,1747969847057,-430.0,0.00017043,2]
[362069599,1747969847067,-430.0,0.00017043,2]
[362069600,1747969847077,-430.0,0.00017043,2]
[362069601,1747969847087,-453.08038537,0.00017043,2]
[362069602,1747969847098,-430.0,0.00017043,2]
[362069603,1747969847108,-430.0,0.00017043,2]
[362069604,1747969847117,-430.0,0.00017043,2]
[362069605,1747969847127,-430.0,0.00017043,2]
[362069606,1747969847137,-430.0,0.00017043,2]
[362069607,1747969847146,-430.0,0.00017043,2]
[362069608,1747969847156,-430.0,0.00017043,2]
[362069609,1747969847165,-430.0,0.00017043,2]
[362069610,1747969847175,-400.86513398,0.00017043,2]
[362069611,1747969847185,-430.0,0.00017043,2]
[362069612,1747969847195,-430.0,0.00017043,2]
[362069613,1747969847205,-430.0,0.00017043,2]
[362069614,1747969847214,-430.0,0.00017043,2]
[362069615,1747969847224,-336.36575674,0.00017043,2]
[362069616,1747969847234,-430.0,0.00017043,2]
[362069617,1747969847243,-430.0,0.00017043,2]
[362069618,1747969847252,-430.0,0.00017043,2]
[362069619,1747969847262,-430.0,0.00017043,2]
[362069620,1747969847271,-430.0,0.00017043,2]
[362069621,1747969847280,-524.82,0.00017043,2]
[362069622,1747969847289,-438.12987146,0.00017043,2]
[362069623,1747969847299,-460.97,0.00017043,2]
[362069624,1747969847309,-169.57220046,0.00017043,2]
[362069625,1747969847318,-430.0,0.00017043,2]
[362069626,1747969847328,-430.0,0.00017043,2]
[362069627,1747969847338,-430.0,0.00017043,2]
[362069628,1747969847347,-430.0,0.00017043,2]
[362069629,1747969847356,-430.0,0.00017043,2]
[362069630,1747969847365,-491.28886708,0.00017043,2]
[362069631,1747969847374,-430.0,0.00017043,2]
[362069632,1747969847384,-430.0,0.00017043,2]
[362069633,1747969847393,-467.37805143,0.00017043,2]
[362069634,1747969847402,-430.0,0.00017043,2]
[362069635,1747969847412,-430.0,0.00017043,2]
[362069636,1747969847421,-500.0,0.00017045,2]
[362069637,1747969847431,-430.0,0.00017045,2]
[362069638,1747969847440,-420.0,0.00017171,2]
[362069639,1747969847450,-430.0,0.00017316,2]
[362069640,1747969847459,-469.54,0.00017316,2]
[362069641,1747969847469,-430.0,0.00017316,2]
[362069642,1747969847478,-430.0,0.00017316,2]
[362069643,1747969847488,-193.85,0.00017316,2]
[362069644,1747969847498,-430.0,0.00017316,2]
[362069645,1747969847507,-430.0,0.00017316,2]
[362069646,1747969847517,-430.0,0.00017316,2]
[362069647,1747969847527,-482.89,0.00017317,2]
[362069648,1747969847536,-395.86289653,0.00017317,2]
[362069649,1747969847546,-430.0,0.00017317,2]
[362069650,1747969847555,-430.0,0.00017317,2]
[362069651,1747969847564,-430.0,0.00017317,2]
[362069652,1747969847573,-430.0,0.00017317,2]
[362069653,1747969847583,-155.65,0.00017317,2]
[362069654,1747969847592,-430.0,0.00017317,2]
[362069655,1747969847602,-430.0,0.00017317,2]
[362069656,1747969847612,-430.0,0.00017317,2]
[362069657,1747969847622,-430.0,0.00017317,2]
[362069658,1747969847631,-430.0,0.00017317,2]
[362069659,1747969847641,-430.0,0.00017317,2]
[362069660,1747969847650,-430.0,0.00017317,2]
[362069661,1747969847660,-430.0,0.00017317,2]
[362069662,1747969847669,-254.06,0.00017317,2]
[362069663,1747969847679,-430.0,0.00017317,2]
[362069664,1747969847688,-502.9810902,0.00017319,2]
[362069665,1747969847698,-430.0,0.00017319,2]
[362069666,1747969847707,-430.0,0.0001759,2]
[362069667,1747969847716,-469.54,0.0001759,2]
[362069668,1747969847725,-430.0,0.0001759,2]
[362069669,1747969847734,-430.0,0.0001759,2]
[362069670,1747969847745,-430.0,0.0001759,2]
[362069671,1747969847758,-430.0,0.0001759,2]
[362069672,1747969847767,-430.0,0.0001759,2]
[362069673,1747969847776,-430.0,0.00017591,2]
[362069674,1747969847785,-430.0,0.00017591,2]
[362069675,1747969847796,-430.0,0.00017591,2]
[362069676,1747969847806,-430.0,0.00017591,2]
[362069677,1747969847815,-430.0,0.00017591,2]
[362069678,1747969847824,-430.0,0.00017591,2]
[362069679,1747969847834,-430.0,0.00017591,2]
[362069680,1747969847843,-430.0,0.00017591,2]
[362069681,1747969847852,-430.0,0.00017591,2]
[362069682,1747969847862,-347.17594866,0.00017864,2]
[362069683,1747969847976,-82.82405134,0.00017864,2]
[362069684,1747969847985,-469.54,0.00017864,2]
[362069685,1747969847995,-430.0,0.00017864,2]
[362069686,1747969848004,-430.0,0.00017864,2]
[362069687,1747969848013,-430.0,0.00017864,2]
[362069688,1747969848023,-430.0,0.00017864,2]
[362069689,1747969848032,-430.0,0.00017864,2]
[362069690,1747969848042,-430.0,0.00017865,2]
[362069691,1747969848051,-430.0,0.00017865,2]
[362069692,1747969848060,-341.88,0.00017865,2]
[362069693,1747969848070,-304.03,0.00017865,2]
[362069694,1747969848080,-430.0,0.00017865,2]
[362069695,1747969848089,-430.0,0.00017865,2]
[362069696,1747969848098,-500.0,0.0001801,2]
[362069697,1747969848107,-250.57532423,0.00018138,2]
[362069698,1747969848117,-469.54,0.00018138,2]
[362069699,1747969848126,-495.93300522,0.00018138,2]
[362069700,1747969848137,-430.0,0.00018138,2]
[362069701,1747969848146,-45.17761921,0.00018138,2]
[362069703,1747970332107,329.213179,0.00013699,2]
[362069731,1747970675210,-225.86354141,0.00016033,2]
[362069871,1747971038552,-3696.08992977,0.00015231,2]
[362069873,1747971038562,-109.72788388,0.00015384,2]
[362069876,1747971038576,-55.66209512,0.00015384,2]
[362069877,1747971038585,-165.389979,0.00015423,2]
[362069878,1747971038595,-300.0,0.00015425,2]
[362069879,1747971038605,-300.0,0.00015425,2]
[362069880,1747971038614,-300.0,0.00015425,2]
[362069881,1747971038624,-4237.18464107,0.00015426,2]
[362069882,1747971038636,-562.7876311,0.00015426,2]
[362069883,1747971038652,-3794.37414741,0.00015426,2]
[362069884,1747971038666,-16305.65358042,0.00015426,2]
[362069885,1747971038676,-336.878799,0.00015438,2]
[362069886,1747971038687,-165.389979,0.00015461,2]
[362069887,1747971038696,-160.0,0.00016187,2]
[362069888,1747971038707,-209.8776403,0.00016367,2]
[362069889,1747971038716,-500.0,0.00016437,2]
[362069890,1747971038726,-574.94767275,0.00016437,2]
[362069891,1747971038736,-204.69858942,0.00016437,2]
[362069892,1747971038747,-500.0,0.00016437,2]
[362069893,1747971038757,-500.0,0.00016437,2]
[362069894,1747971038767,-500.0,0.00016437,2]
[362069895,1747971038776,-500.0,0.00016437,2]
[362069896,1747971038786,-300.0,0.00016437,2]
[362069897,1747971038797,-500.0,0.00016437,2]
[362069898,1747971038806,-500.0,0.00016437,2]
[362069899,1747971038816,-500.0,0.00016437,2]
[362069900,1747971038825,-500.0,0.00016437,2]
[362069901,1747971038835,-324.83129173,0.00016437,2]
[362069902,1747971038845,-162.10536619,0.00016437,2]
[362069903,1747971038854,-500.0,0.00016437,2]
[362069904,1747971038863,-500.0,0.00016437,2]
[362069905,1747971038874,-500.0,0.00016437,2]
[362069906,1747971038884,-500.0,0.00016437,2]
[362069907,1747971038894,-392.86328296,0.00016437,2]
[362069908,1747971038905,-500.0,0.00016437,2]
[362069909,1747971038915,-500.0,0.00016437,2]
[362069910,1747971038925,-500.0,0.00016437,2]
[362069911,1747971038936,-500.0,0.00016437,2]
[362069912,1747971038947,-503.75422058,0.00016437,2]
[362069913,1747971038958,-500.0,0.00016437,2]
[362069914,1747971038968,-500.0,0.00016437,2]
[362069915,1747971038979,-500.0,0.00016437,2]
[362069916,1747971038988,-500.0,0.00016437,2]
[362069917,1747971038999,-500.0,0.00016437,2]
[362069918,1747971039010,-393.80989358,0.00016437,2]
[362069919,1747971039019,-500.0,0.00016437,2]
[362069920,1747971039030,-500.0,0.00016437,2]
[362069921,1747971039040,-500.0,0.00016437,2]
[362069922,1747971039051,-500.0,0.00016437,2]
[362069923,1747971039060,-500.0,0.00016437,2]
[362069924,1747971039070,-500.0,0.00016437,2]
[362069925,1747971039080,-500.0,0.00016437,2]
[362069926,1747971039090,-381.44703916,0.00016437,2]
[362069927,1747971039104,-500.0,0.00016437,2]
[362069928,1747971039114,-500.0,0.00016437,2]
[362069929,1747971039123,-500.0,0.00016437,2]
[362069930,1747971039133,-500.0,0.00016437,2]
[362069931,1747971039143,-500.0,0.00016437,2]
[362069932,1747971039153,-500.0,0.00016437,2]
[362069933,1747971039165,-572.57780194,0.00016437,2]
[362069934,1747971039175,-500.0,0.00016437,2]
[362069935,1747971039185,-500.0,0.00016437,2]
[362069936,1747971039195,-500.0,0.00016437,2]
[362069937,1747971039204,-500.0,0.00016437,2]
[362069938,1747971039214,-500.0,0.00016437,2]
[362069939,1747971039224,-500.0,0.00016437,2]
[362069940,1747971039235,-500.0,0.00016437,2]
[362069941,1747971039245,-500.0,0.00016437,2]
[362069942,1747971039255,-500.0,0.00016437,2]
[362069943,1747971039265,-500.0,0.00016437,2]
[362069944,1747971039275,-500.0,0.00016437,2]
[362069945,1747971039285,-500.0,0.00016437,2]
[362069946,1747971039295,-500.0,0.00016437,2]
[362069947,1747971039304,-500.0,0.00016437,2]
[362069948,1747971039314,-500.0,0.00016437,2]
[362069949,1747971039323,-229.80197927,0.00016437,2]
[362069950,1747971039333,-500.0,0.00016437,2]
[362069951,1747971039343,-516.08009723,0.00016437,2]
[362069952,1747971039353,-304.49536609,0.00016437,2]
[362069953,1747971039363,-12165.89969946,0.00016438,3]
[362069954,1747971039373,-266.17576052,0.00016438,2]
[362069955,1747971039383,-430.0,0.00016438,2]
[362069956,1747971039393,-430.0,0.00016438,2]
[362069957,1747971039403,-511.16,0.00016438,2]
[362069958,1747971039413,-430.0,0.00016438,2]
[362069959,1747971039423,-570.13097995,0.00016438,2]
[362069960,1747971039434,-430.0,0.00016438,2]
[362069961,1747971039444,-430.0,0.00016438,2]
[362069962,1747971039453,-430.0,0.00016438,2]
[362069963,1747971039463,-430.0,0.00016438,2]
[362069964,1747971039473,-430.0,0.00016438,2]
[362069965,1747971039483,-430.0,0.00016438,2]
[362069966,1747971039493,-440.37181364,0.00016438,2]
[362069967,1747971039503,-430.0,0.00016438,2]
[362069968,1747971039513,-430.0,0.00016438,2]
[362069969,1747971039522,-430.0,0.00016438,2]
[362069970,1747971039533,-731.29,0.00016438,2]
[362069971,1747971039542,-430.0,0.00016438,2]
[362069972,1747971039552,-430.0,0.00016438,2]
[362069973,1747971039562,-442.01,0.00016438,2]
[362069974,1747971039572,-430.0,0.00016438,2]
[362069975,1747971039582,-430.0,0.00016438,2]
[362069976,1747971039592,-815.64,0.00016438,2]
[362069977,1747971039602,-430.0,0.00016438,2]
[362069978,1747971039612,-430.0,0.00016438,2]
[362069979,1747971039622,-430.0,0.00016438,2]
[362069980,1747971039632,-430.0,0.00016438,2]
[362069981,1747971039641,-430.0,0.00016438,2]
[362069982,1747971039651,-430.0,0.00016438,2]
[362069983,1747971039661,-430.0,0.00016438,2]
[362069984,1747971039671,-645.3,0.00016438,2]
[362069985,1747971039682,-453.05621476,0.00016438,2]
[362069986,1747971039692,-430.0,0.00016438,2]
[362069987,1747971039702,-430.0,0.00016438,2]
[362069988,1747971039713,-430.0,0.00016438,2]
[362069989,1747971039725,-430.0,0.00016438,2]
[362069990,1747971039734,-430.0,0.00016438,2]
[362069991,1747971039744,-430.0,0.00016438,2]
[362069992,1747971039754,-430.0,0.00016438,2]
[362069993,1747971039764,-430.0,0.00016438,2]
[362069994,1747971039775,-430.0,0.00016438,2]
[362069995,1747971039785,-430.0,0.00016438,2]
[362069996,1747971039795,-430.0,0.00016438,2]
[362069997,1747971039805,-430.0,0.00016438,2]
[362069998,1747971039816,-479.91,0.00016438,2]
[362069999,1747971039825,-430.0,0.00016438,2]
[362070000,1747971039836,-439.52875474,0.00016438,2]
[362070001,1747971039846,-50000.0,0.00016438,2]
[362070002,1747971039855,-2503.67270608,0.000165,2]
[362070003,1747971039865,-1017.9,0.00016586,3]
[362070005,1747971039875,-508.95,0.00016586,3]
[362070007,1747971039884,-254.48,0.00016586,3]
[362070009,1747971039894,-763.46,0.00016586,3]
[362070010,1747971039904,-221274.31574109,0.00016596,2]
[362070011,1747971039913,-563.39598593,0.00016596,2]
[362070012,1747971039923,-430.0,0.00016596,2]
[362070013,1747971039933,-430.0,0.00016596,2]
[362070014,1747971039943,-430.0,0.00016596,2]
[362070015,1747971039954,-430.0,0.00016596,2]
[362070016,1747971039963,-430.0,0.00016596,2]
[362070017,1747971039973,-490.37,0.00016596,2]
[362070018,1747971039983,-430.0,0.00016596,2]
[362070019,1747971039993,-430.0,0.00016596,2]
[362070020,1747971040003,-430.0,0.00016596,2]
[362070021,1747971040013,-430.0,0.00016596,2]
[362070022,1747971040023,-430.0,0.00016596,2]
[362070024,1747971040033,-430.0,0.00016596,2]
[362070026,1747971040043,-430.0,0.00016596,2]
[362070028,1747971040052,-556.23,0.00016596,2]
[362070029,1747971040062,-571.18,0.00016596,2]
[362070031,1747971040071,-430.0,0.00016596,2]
[362070033,1747971040082,-430.0,0.00016596,2]
[362070035,1747971040092,-430.0,0.00016596,2]
[362070038,1747971040102,-430.0,0.00016596,2]
[362070040,1747971040111,-430.0,0.00016596,2]
[362070042,1747971040120,-430.0,0.00016596,2]
[362070044,1747971040130,-438.87063163,0.00016596,2]
[362070045,1747971040139,-430.0,0.00016596,2]
[362070048,1747971040152,-430.0,0.00016596,2]
[362070050,1747971040162,-430.0,0.00016596,2]
[362070052,1747971040171,-430.0,0.00016596,2]
[362070054,1747971040181,-430.0,0.00016596,2]
[362070056,1747971040191,-430.0,0.00016596,2]
[362070059,1747971040201,-430.0,0.00016596,2]
[362070062,1747971040211,-430.0,0.00016596,2]
[362070065,1747971040221,-430.0,0.00016596,2]
[362070068,1747971040231,-430.0,0.00016596,2]
[362070071,1747971040243,-430.0,0.00016596,2]
[362070073,1747971040252,-430.0,0.00016596,2]
[362070076,1747971040262,-200.76823353,0.00016596,2]
[362070078,1747971040271,-430.0,0.00016596,2]
[362070080,1747971040281,-430.0,0.00016596,2]
[362070083,1747971040291,-454.95183123,0.00016596,2]
[362070085,1747971040300,-430.0,0.00016596,2]
[362070087,1747971040311,-430.0,0.00016712,2]
[362070089,1747971040321,-292.5854453,0.00016712,2]
[362070091,1747971040331,-430.0,0.00016712,2]
[362070093,1747971040341,-430.0,0.00016712,2]
[362070095,1747971040351,-430.0,0.00016712,2]
[362070097,1747971040362,-430.0,0.00016712,2]
[362070099,1747971040372,-430.0,0.00016712,2]
[362070100,1747971040383,-731.29,0.00016712,2]
[362070101,1747971040393,-430.0,0.00016712,2]
[362070102,1747971040402,-442.01,0.00016712,2]
[362070103,1747971040413,-430.0,0.00016712,2]
[362070104,1747971040423,-815.64,0.00016712,2]
[362070105,1747971040435,-430.0,0.00016712,2]